fUSD/lending_fUSD_20240105
["ID","MTS","AMOUNT","RATE_DAILY","PERIOD"]
[310309125,1704471080576,-1182.33,0.0003041,2]
[310309126,1704471080585,-500.0,0.0003041,2]
[310309127,1704471080595,-3777.28,0.0003041,2]
[310309128,1704471080604,-500.0,0.0003041,2]
[310309129,1704471080614,-1058.15,0.0003041,2]
[310309130,1704471080623,-500.0,0.0003041,2]
[310309131,1704471080634,-571.4,0.0003041,2]
[310309132,1704471080643,-500.0,0.0003041,2]
[310309133,1704471080653,-830.16,0.0003041,2]
[310309134,1704471080663,-2249.97,0.0003041,2]
[310309135,1704471080673,-500.0,0.0003041,2]
[310309136,1704471080683,-500.0,0.0003041,2]
[310309137,1704471080692,-500.0,0.0003041,2]
[310309138,1704471080701,-1078.96,0.0003041,2]
[310309139,1704471080711,-1921.66,0.0003041,2]
[310309140,1704471080721,-500.0,0.0003041,2]
[310309141,1704471080733,-2596.11,0.0003041,2]
[310309142,1704471080743,-1277.02,0.0003041,2]
[310309143,1704471080753,-272.61369993,0.0003041,2]
[310309144,1704471080762,-500.0,0.0003041,2]
[310309145,1704471080771,-1916.84,0.0003041,2]
[310309146,1704471080781,-500.0,0.0003041,2]
[310309147,1704471080790,-652.62,0.0003041,2]
[310309148,1704471080801,-438.58425905,0.0003041,2]
[310309149,1704471080811,-500.0,0.0003041,2]
[310309150,1704471080820,-915.92,0.0003041,2]
[310309151,1704471080830,-500.0,0.0003041,2]
[310309152,1704471080839,-500.0,0.0003041,2]
[310309153,1704471080849,-500.0,0.0003041,2]
[310309154,1704471080858,-500.0,0.0003041,2]
[310309155,1704471080868,-150.0,0.0003041,2]
[310309156,1704471080878,-582.86,0.0003041,2]
[310309157,1704471080887,-790.64,0.0003041,2]
[310309158,1704471080897,-500.0,0.0003041,2]
[310309159,1704471080907,-500.0,0.0003041,2]
[310309160,1704471080916,-500.0,0.0003041,2]
[310309161,1704471080925,-500.0,0.0003041,2]
[310309162,1704471080935,-3952.46,0.0003041,2]
[310309163,1704471080944,-4595.39,0.0003041,2]
[310309164,1704471080954,-500.0,0.0003041,2]
[310309165,1704471080965,-500.0,0.0003041,2]
[310309166,1704471080973,-500.0,0.0003041,2]
[310309167,1704471080982,-500.0,0.0003041,2]
[310309168,1704471080992,-756.94,0.0003041,2]
[310309169,1704471081002,-1252.88,0.0003041,2]
[310309170,1704471081012,-500.0,0.0003041,2]
[310309171,1704471081022,-717.12,0.0003041,2]
[310309172,1704471081033,-964.19,0.0003041,2]
[310309173,1704471081043,-500.0,0.0003041,2]
[310309174,1704471081052,-1622.29,0.0003041,2]
[310309175,1704471081063,-500.0,0.0003041,2]
[310309176,1704471081073,-511.35,0.0003041,2]
[310309177,1704471081084,-500.0,0.0003041,2]
[310309178,1704471081094,-2229.13,0.0003041,2]
[310309179,1704471081104,-629.9,0.0003041,2]
[310309180,1704471081114,-500.0,0.0003041,2]
[310309181,1704471081124,-6081.11,0.0003041,2]
[310309182,1704471081134,-1254.57,0.0003041,2]
[310309183,1704471081144,-1984.28,0.0003041,2]
[310309184,1704471081154,-529.0,0.0003041,2]
[310309185,1704471081164,-500.0,0.0003041,2]
[310309186,1704471081174,-500.0,0.0003041,2]
[310309187,1704471081183,-500.0,0.0003041,2]
[310309188,1704471081193,-730.24,0.0003041,2]
[310309189,1704471081203,-500.0,0.0003041,2]
[310309190,1704471081215,-1375.91,0.0003041,2]
[310309191,1704471081224,-839.46,0.0003041,2]
[310309192,1704471081234,-500.0,0.0003041,2]
[310309193,1704471081253,-500.0,0.0003041,2]
[310309194,1704471081270,-500.0,0.0003041,2]
[310309195,1704471081291,-500.0,0.0003041,2]
[310309196,1704471081313,-500.0,0.0003041,2]
[310309197,1704471081335,-500.0,0.0003041,2]
[310309198,1704471081356,-500.0,0.0003041,2]
[310309199,1704471081379,-1622.69,0.0003041,2]
[310309200,1704471081401,-11940.29,0.0003041,2]
[310309201,1704471081421,-500.0,0.0003041,2]
[310309202,1704471081437,-5893.72,0.0003041,2]
[310309203,1704471081447,-500.0,0.0003041,2]
[310309204,1704471081457,-514.76352736,0.0003041,2]
[310309205,1704471081468,-713.7,0.0003041,2]
[310309206,1704471081478,-1045.96,0.0003041,2]
[310309207,1704471081489,-2605.01,0.0003041,2]
[310309208,1704471081500,-500.0,0.0003041,2]
[310309209,1704471081510,-500.0,0.0003041,2]
[310309210,1704471081520,-381.78,0.0003041,2]
[310309211,1704471081530,-500.0,0.0003041,2]
[310309212,1704471081540,-500.0,0.0003041,2]
[310309213,1704471081549,-500.0,0.0003041,2]
[310309214,1704471081558,-543.11,0.0003041,2]
[310309215,1704471081568,-167.25164314,0.0003041,2]
[310309216,1704471081578,-500.0,0.0003041,2]
[310309217,1704471081588,-500.0,0.0003041,2]
[310309218,1704471081598,-608.68,0.0003041,2]
[310309219,1704471081607,-7863.2,0.0003041,2]
[310309220,1704471081617,-202.81903212,0.0003041,2]
[310309221,1704471081627,-2294.09,0.0003041,2]
[310309222,1704471081637,-500.0,0.0003041,2]
[310309223,1704471081647,-500.0,0.0003041,2]
[310309224,1704471081657,-504.78571716,0.0003041,2]
[310309225,1704471081667,-647.48,0.0003041,2]
[310309226,1704471081677,-500.0,0.0003041,2]
[310309227,1704471081686,-3601.71,0.0003041,2]
[310309228,1704471081696,-1192.53,0.0003041,2]
[310309229,1704471081706,-500.0,0.0003041,2]
[310309230,1704471081716,-1603.38,0.0003041,2]
[310309231,1704471081726,-608.21977847,0.0003041,2]
[310309232,1704471081736,-500.0,0.0003041,2]
[310309233,1704471081749,-770.23,0.0003041,2]
[310309234,1704471081761,-500.0,0.0003041,2]
[310309235,1704471081772,-500.0,0.0003041,2]
[310309236,1704471081783,-618.49,0.0003041,2]
[310309237,1704471081793,-500.0,0.0003041,2]
[310309238,1704471081804,-2938.06,0.0003041,2]
[310309239,1704471081813,-500.0,0.0003041,2]
[310309240,1704471081823,-500.0,0.0003041,2]
[310309241,1704471081832,-1744.78,0.0003041,2]
[310309242,1704471081843,-666.36,0.0003041,2]
[310309243,1704471081855,-500.0,0.0003041,2]
[310309244,1704471081864,-500.0,0.0003041,2]
[310309245,1704471081875,-500.0,0.0003041,2]
[310309246,1704471081884,-500.0,0.0003041,2]
[310309247,1704471081894,-500.0,0.0003041,2]
[310309248,1704471081904,-500.0,0.0003041,2]
[310309249,1704471081914,-2064.43,0.0003041,2]
[310309250,1704471081924,-5976.75,0.0003041,2]
[310309251,1704471081933,-500.0,0.0003041,2]
[310309252,1704471081943,-5218.54,0.0003041,2]
[310309253,1704471081953,-526.45,0.0003041,2]
[310309254,1704471081963,-650.01,0.0003041,2]
[310309255,1704471081974,-554.78,0.0003041,2]
[310309256,1704471081984,-770.2,0.0003041,2]
[310309257,1704471081994,-500.0,0.0003041,2]
[310309258,1704471082005,-500.0,0.0003041,2]
[310309259,1704471082015,-1624.24,0.0003041,2]
[310309260,1704471082024,-500.0,0.0003041,2]
[310309261,1704471082035,-657.7,0.0003041,2]
[310309262,1704471082045,-500.0,0.0003041,2]
[310309263,1704471082055,-500.0,0.0003041,2]
[310309264,1704471082065,-500.0,0.0003041,2]
[310309265,1704471082076,-899.11,0.0003041,2]
[310309266,1704471082086,-553.3853236,0.0003041,2]
[310309267,1704471082096,-500.0,0.0003041,2]
[310309268,1704471082106,-500.0,0.0003041,2]
[310309269,1704471082116,-2564.8,0.0003041,2]
[310309270,1704471082126,-500.0,0.0003041,2]
[310309271,1704471082135,-912.23,0.0003041,2]
[310309272,1704471082145,-500.0,0.0003041,2]
[310309273,1704471082155,-701.65,0.0003041,2]
[310309274,1704471082165,-733.59,0.0003041,2]
[310309275,1704471082174,-1151.0,0.0003041,2]
[310309276,1704471082184,-500.0,0.0003041,2]
[310309277,1704471082194,-788.16,0.0003041,2]
[310309278,1704471082204,-500.0,0.0003041,2]
[310309279,1704471082215,-500.0,0.0003041,2]
[310309280,1704471082225,-1833.74,0.0003041,2]
[310309281,1704471082235,-500.0,0.0003041,2]
[310309282,1704471082245,-1286.65,0.0003041,2]
[310309283,1704471082254,-1365.11,0.0003041,2]
[310309284,1704471082264,-1004.41,0.0003041,2]
[310309285,1704471082273,-500.0,0.0003041,2]
[310309286,1704471082283,-500.0,0.0003041,2]
[310309287,1704471082293,-1188.06,0.0003041,2]
[310309288,1704471082302,-500.0,0.0003041,2]
[310309289,1704471082312,-500.0,0.0003041,2]
[310309290,1704471082321,-500.0,0.0003041,2]
[310309291,1704471082331,-541.06942263,0.0003041,2]
[310309292,1704471082341,-500.0,0.0003041,2]
[310309293,1704471082350,-500.0,0.0003041,2]
[310309294,1704471082360,-512.90357543,0.0003041,2]
[310309295,1704471082370,-889.44,0.0003041,2]
[310309296,1704471082381,-500.0,0.0003041,2]
[310309297,1704471082391,-718.53,0.0003041,2]
[310309298,1704471082401,-799.46,0.0003041,2]
[310309299,1704471082411,-500.0,0.0003041,2]
[310309300,1704471082421,-2168.33,0.0003041,2]
[310309301,1704471082431,-500.0,0.0003041,2]
[310309302,1704471082441,-1229.01,0.0003041,2]
[310309303,1704471082451,-500.0,0.0003041,2]
[310309304,1704471082461,-500.0,0.0003041,2]
[310309305,1704471082473,-1007.17,0.0003041,2]
[310309306,1704471082669,-1440.65,0.0003041,2]
[310309307,1704471082680,-500.0,0.0003041,2]
[310309308,1704471082690,-500.0,0.0003041,2]
[310309309,1704471082703,-1492.25,0.0003041,2]
[310309310,1704471082712,-1310.28,0.0003041,2]
[310309311,1704471082723,-1033.01,0.0003041,2]
[310309312,1704471082733,-500.0,0.0003041,2]
[310309313,1704471082744,-500.0,0.0003041,2]
[310309314,1704471082753,-500.0,0.0003041,2]
[310309315,1704471082762,-500.0,0.0003041,2]
[310309316,1704471082772,-8762.76,0.0003041,2]
[310309317,1704471082782,-500.0,0.0003041,2]
[310309318,1704471082793,-500.0,0.0003041,2]
[310309319,1704471082802,-500.0,0.0003041,2]
[310309320,1704471082812,-500.0,0.0003041,2]
[310309321,1704471082822,-500.0,0.0003041,2]
[310309322,1704471082831,-721.62,0.0003041,2]
[310309323,1704471082841,-1037.25,0.0003041,2]
[310309324,1704471082850,-1254.6,0.0003041,2]
[310309325,1704471082860,-492.70027922,0.0003041,2]
[310309326,1704471082869,-1235.07,0.0003041,2]
[310309327,1704471082879,-500.0,0.0003041,2]
[310309328,1704471082888,-500.0,0.0003041,2]
[310309329,1704471082897,-1231.65,0.0003041,2]
[310309330,1704471082907,-500.0,0.0003041,2]
[310309331,1704471082916,-1175.89,0.0003041,2]
[310309332,1704471082926,-500.0,0.0003041,2]
[310309333,1704471082936,-500.0,0.0003041,2]
[310309334,1704471082946,-500.0,0.0003041,2]
[310309335,1704471082956,-2988.81,0.0003041,2]
[310309336,1704471082966,-1078.8,0.0003041,2]
[310309337,1704471082976,-500.0,0.0003041,2]
[310309338,1704471082985,-8593.4,0.0003041,2]
[310309339,1704471082995,-858.78,0.0003041,2]
[310309340,1704471083005,-500.0,0.0003041,2]
[310309341,1704471083014,-1000.0,0.0003041,2]
[310309342,1704471083024,-590.95546694,0.0003041,2]
[310309343,1704471083034,-500.0,0.0003041,2]
[310309344,1704471083044,-500.0,0.0003041,2]
[310309345,1704471083053,-500.0,0.0003041,2]
[310309346,1704471083063,-500.0,0.0003041,2]
[310309347,1704471083072,-500.0,0.0003041,2]
[310309348,1704471083082,-530.77658687,0.0003041,2]
[310309349,1704471083092,-500.0,0.0003041,2]
[310309350,1704471083102,-500.0,0.0003041,2]
[310309351,1704471083111,-775.55,0.0003041,2]
[310309352,1704471083121,-404.84396269,0.0003041,2]
[310309353,1704471083131,-500.0,0.0003041,2]
[310309354,1704471083140,-508.85,0.0003041,2]
[310309355,1704471083150,-13181.47,0.0003041,2]
[310309356,1704471083161,-500.0,0.0003041,2]
[310309357,1704471083171,-2255.28,0.0003041,2]
[310309358,1704471083181,-1023.39,0.0003041,2]
[310309359,1704471083190,-214.62961227,0.0003041,2]
[310309360,1704471083200,-1387.79,0.0003041,2]
[310309361,1704471083210,-500.0,0.0003041,2]
[310309362,1704471083221,-500.0,0.0003041,2]
[310309363,1704471083230,-500.0,0.0003041,2]
[310309364,1704471083240,-507.25,0.0003041,2]
[310309365,1704471083249,-615.53,0.0003041,2]
[310309366,1704471083258,-500.0,0.0003041,2]
[310309367,1704471083269,-500.0,0.0003041,2]
[310309368,1704471083280,-2939.6,0.0003041,2]
[310309369,1704471083290,-500.0,0.0003041,2]
[310309370,1704471083300,-500.0,0.0003041,2]
[310309371,1704471083310,-500.0,0.0003041,2]
[310309372,1704471083321,-500.0,0.0003041,2]
[310309373,1704471083330,-500.0,0.0003041,2]
[310309374,1704471083340,-422.72322499,0.0003041,2]
[310309375,1704471083351,-500.0,0.0003041,2]
[310309376,1704471083361,-500.0,0.0003041,2]
[310309377,1704471083371,-875.24,0.0003041,2]
[310309378,1704471083380,-500.0,0.0003041,2]
[310309379,1704471083389,-1102.46,0.0003041,2]
[310309380,1704471083399,-534.68,0.0003041,2]
[310309381,1704471083409,-550.0538552,0.0003041,2]
[310309382,1704471083419,-871.56,0.0003041,2]
[310309383,1704471083428,-735.74,0.0003041,2]
[310309384,1704471083438,-1299.1,0.0003041,2]
[310309385,1704471083448,-1104.41,0.0003041,2]
[310309386,1704471083458,-500.0,0.0003041,2]
[310309387,1704471083469,-500.0,0.0003041,2]
[310309388,1704471083479,-500.0,0.0003041,2]
[310309389,1704471083490,-500.0,0.0003041,2]
[310309390,1704471083500,-2232.74,0.0003041,2]
[310309391,1704471083510,-500.0,0.0003041,2]
[310309392,1704471083519,-924.65,0.0003041,2]
[310309393,1704471083529,-500.0,0.0003041,2]
[310309394,1704471083539,-815.75,0.0003041,2]
[310309395,1704471083549,-500.0,0.0003041,2]
[310309396,1704471083559,-500.0,0.0003041,2]
[310309397,1704471083569,-508.21635932,0.0003041,2]
[310309398,1704471083578,-500.0,0.0003041,2]
[310309399,1704471083588,-534.43,0.0003041,2]
[310309400,1704471083597,-1341.18,0.0003041,2]
[310309401,1704471083606,-516.38418337,0.0003041,2]
[310309402,1704471083615,-500.0,0.0003041,2]
[310309403,1704471083625,-411.0,0.00030477,2]
[310309404,1704471083636,-700.0,0.0003057,2]
[310309405,1704471083646,-500.0,0.00030684,2]
[310309406,1704471083656,-785.36,0.00030684,2]
[310309407,1704471083666,-500.0,0.00030684,2]
[310309408,1704471083675,-500.0,0.00030684,2]
[310309409,1704471083685,-500.0,0.00030684,2]
[310309410,1704471083695,-500.0,0.00030684,2]
[310309411,1704471083704,-500.0,0.00030684,2]
[310309412,1704471083713,-535.27119783,0.00030684,2]
[310309413,1704471083723,-500.0,0.00030684,2]
[310309414,1704471083732,-500.0,0.00030684,2]
[310309415,1704471083741,-500.0,0.00030684,2]
[310309416,1704471083750,-500.0,0.00030684,2]
[310309417,1704471083760,-500.0,0.00030684,2]
[310309418,1704471083769,-500.0,0.00030684,2]
[310309419,1704471083780,-150.0,0.00030684,2]
[310309420,1704471083789,-500.0,0.00030684,2]
[310309421,1704471083798,-1435.45,0.00030684,2]
[310309422,1704471083808,-500.0,0.00030684,2]
[310309423,1704471083828,-500.0,0.00030684,2]
[310309424,1704471083848,-317.29694614,0.00030684,2]
[310309425,1704471083867,-213.28633825,0.00030684,2]
[310309426,1704471083888,-500.0,0.00030684,2]
[310309427,1704471083904,-500.0,0.00030684,2]
[310309428,1704471083921,-556.99029864,0.00030684,2]
[310309429,1704471083940,-500.0,0.00030684,2]
[310309430,1704471083958,-500.0,0.00030684,2]
[310309431,1704471083978,-500.0,0.00030684,2]
[310309432,1704471083996,-500.0,0.00030684,2]
[310309433,1704471084017,-500.0,0.00030684,2]
[310309434,1704471084035,-500.0,0.00030684,2]
[310309435,1704471084048,-500.0,0.00030684,2]
[310309436,1704471084067,-500.0,0.00030684,2]
[310309437,1704471084082,-500.0,0.00030684,2]
[310309438,1704471084099,-500.0,0.00030684,2]
[310309439,1704471084115,-764.34,0.00030684,2]
[310309440,1704471084130,-500.0,0.00030684,2]
[310309441,1704471084147,-749.93,0.00030684,2]
[310309442,1704471084162,-500.0,0.00030684,2]
[310309443,1704471084179,-500.0,0.00030684,2]
[310309444,1704471084194,-512.27,0.00030684,2]
[310309445,1704471084209,-500.0,0.00030684,2]
[310309446,1704471084224,-328.28926974,0.00030684,2]
[310309447,1704471084239,-500.0,0.00030684,2]
[310309448,1704471084255,-790.83,0.00030684,2]
[310309449,1704471084270,-500.0,0.00030684,2]
[310309450,1704471084285,-500.0,0.00030684,2]
[310309451,1704471084303,-500.0,0.00030684,2]
[310309452,1704471084318,-464.23201549,0.00030684,2]
[310309453,1704471084334,-500.0,0.00030684,2]
[310309454,1704471084350,-500.0,0.00030684,2]
[310309455,1704471084366,-500.0,0.00030684,2]
[310309456,1704471084381,-500.0,0.00030684,2]
[310309457,1704471084396,-500.0,0.00030684,2]
[310309458,1704471084412,-654.72,0.00030684,2]
[310309459,1704471084427,-500.0,0.00030684,2]
[310309460,1704471084443,-541.91240354,0.00030684,2]
[310309461,1704471084458,-500.0,0.00030684,2]
[310309462,1704471084474,-500.0,0.00030684,2]
[310309463,1704471084489,-525.0639084,0.00030684,2]
[310309464,1704471084505,-500.0,0.00030684,2]
[310309465,1704471084520,-347.28004848,0.00030684,2]
[310309466,1704471084535,-416.39261868,0.00030684,2]
[310309467,1704471084550,-526.7954109,0.00030684,2]
[310309468,1704471084566,-500.0,0.00030684,2]
[310309469,1704471084581,-529.81,0.00030684,2]
[310309470,1704471084595,-525.02262248,0.00030684,2]
[310309471,1704471084611,-553.69,0.00030684,2]
[310309472,1704471084627,-500.0,0.00030684,2]
[310309473,1704471084642,-500.0,0.00030684,2]
[310309474,1704471084657,-500.0,0.00030684,2]
[310309475,1704471084672,-500.0,0.00030684,2]
[310309476,1704471084687,-500.0,0.00030684,2]
[310309477,1704471084703,-500.0,0.00030684,2]
[310309478,1704471084719,-500.0,0.00030684,2]
[310309479,1704471084740,-500.0,0.00030684,2]
[310309480,1704471084767,-500.0,0.00030684,2]
[310309481,1704471084794,-500.0,0.00030684,2]
[310309482,1704471084821,-518.23303356,0.00030684,2]
[310309483,1704471084848,-500.0,0.00030684,2]
[310309484,1704471084876,-500.0,0.00030684,2]
[310309485,1704471084904,-609.97603661,0.00030684,2]
[310309486,1704471084930,-500.86721661,0.00030684,2]
[310309487,1704471084946,-250.60642091,0.00030684,2]
[310309488,1704471084963,-500.0,0.00030684,2]
[310309489,1704471084979,-500.0,0.00030684,2]
[310309490,1704471084994,-500.0,0.00030684,2]
[310309491,1704471085010,-321.64709843,0.00030684,2]
[310309492,1704471085026,-500.0,0.00030684,2]
[310309493,1704471085042,-500.0,0.00030684,2]
[310309494,1704471085058,-500.0,0.00030684,2]
[310309495,1704471085073,-500.0,0.00030684,2]
[310309496,1704471085087,-500.0,0.00030684,2]
[310309497,1704471085103,-990.19,0.00030684,2]
[310309498,1704471085118,-500.0,0.00030684,2]
[310309499,1704471085134,-500.0,0.00030684,2]
[310309500,1704471085149,-500.0,0.00030684,2]
[310309501,1704471085164,-500.0,0.00030684,2]
[310309502,1704471085179,-500.0,0.00030684,2]
[310309503,1704471085193,-500.0,0.00030684,2]
[310309504,1704471085209,-500.0,0.00030684,2]
[310309505,1704471085225,-532.68851073,0.00030684,2]
[310309506,1704471085240,-500.0,0.00030684,2]
[310309507,1704471085257,-500.0,0.00030684,2]
[310309508,1704471085272,-500.0,0.00030684,2]
[310309509,1704471085288,-849.23,0.00030684,2]
[310309510,1704471085303,-500.0,0.00030684,2]
[310309511,1704471085318,-303.5118084,0.00030684,2]
[310309512,1704471085333,-500.0,0.00030684,2]
[310309513,1704471085348,-500.0,0.00030684,2]
[310309514,1704471085363,-500.0,0.00030684,2]
[310309515,1704471085378,-500.0,0.00030684,2]
[310309516,1704471085393,-500.0,0.00030684,2]
[310309517,1704471085408,-500.0,0.00030684,2]
[310309518,1704471085423,-500.0,0.00030684,2]
[310309519,1704471085439,-500.0,0.00030684,2]
[310309520,1704471085454,-500.0,0.00030684,2]
[310309521,1704471085469,-500.0,0.00030684,2]
[310309522,1704471085485,-581.39,0.00030684,2]
[310309523,1704471085501,-500.0,0.00030684,2]
[310309524,1704471085515,-500.0,0.00030684,2]
[310309525,1704471085531,-500.0,0.00030684,2]
[310309526,1704471085547,-409.54962132,0.00030684,2]
[310309527,1704471085562,-500.0,0.00030684,2]
[310309528,1704471085578,-500.0,0.00030684,2]
[310309529,1704471085593,-500.0,0.00030684,2]
[310309530,1704471085608,-500.0,0.00030684,2]
[310309531,1704471085623,-500.0,0.00030684,2]
[310309532,1704471085639,-281.9370995,0.00030684,2]
[310309533,1704471085654,-500.0,0.00030684,2]
[310309534,1704471085669,-500.0,0.00030684,2]
[310309535,1704471085684,-500.0,0.00030684,2]
[310309536,1704471085700,-500.0,0.00030684,2]
[310309537,1704471085715,-500.0,0.00030684,2]
[310309538,1704471085730,-500.0,0.00030684,2]
[310309539,1704471085747,-500.0,0.00030684,2]
[310309540,1704471085763,-500.0,0.00030684,2]
[310309541,1704471085779,-500.0,0.00030684,2]
[310309542,1704471086051,-500.0,0.00030684,2]
[310309543,1704471086061,-500.0,0.00030684,2]
[310309544,1704471086071,-248.36143939,0.00030684,2]
[310309545,1704471086081,-760.0,0.00030684,2]
[310309546,1704471086090,-500.0,0.00030684,2]
[310309547,1704471086100,-500.0,0.00030684,2]
[310309548,1704471086109,-500.0,0.00030684,2]
[310309549,1704471086119,-500.0,0.00030684,2]
[310309550,1704471086129,-500.0,0.00030684,2]
[310309551,1704471086138,-500.0,0.00030684,2]
[310309552,1704471086148,-475.01374038,0.00030684,2]
[310309553,1704471086157,-500.0,0.00030684,2]
[310309554,1704471086167,-500.0,0.00030684,2]
[310309555,1704471086176,-500.0,0.00030684,2]
[310309556,1704471086185,-500.0,0.00030684,2]
[310309557,1704471086194,-500.0,0.00030684,2]
[310309558,1704471086204,-500.0,0.00030684,2]
[310309559,1704471086213,-500.0,0.00030684,2]
[310309560,1704471086225,-500.0,0.00030684,2]
[310309561,1704471086236,-671.05,0.00030684,2]
[310309562,1704471086246,-500.0,0.00030684,2]
[310309563,1704471086255,-324.72284191,0.00030684,2]
[310309564,1704471086265,-500.0,0.00030684,2]
[310309565,1704471086275,-500.0,0.00030684,2]
[310309566,1704471086285,-500.0,0.00030684,2]
[310309567,1704471086299,-508.03,0.00030684,2]
[310309568,1704471086308,-500.0,0.00030684,2]
[310309569,1704471086317,-500.0,0.00030684,2]
[310309570,1704471086327,-222.61054645,0.00030684,2]
[310309571,1704471086337,-500.0,0.00030684,2]
[310309572,1704471086346,-500.0,0.00030684,2]
[310309573,1704471086356,-500.0,0.00030684,2]
[310309574,1704471086366,-500.0,0.00030684,2]
[310309575,1704471086377,-500.0,0.00030684,2]
[310309576,1704471086387,-500.0,0.00030684,2]
[310309577,1704471086397,-500.0,0.00030684,2]
[310309578,1704471086406,-500.0,0.00030684,2]
[310309579,1704471086416,-500.0,0.00030684,2]
[310309580,1704471086426,-508.33278517,0.00030684,2]
[310309581,1704471086437,-500.0,0.00030684,2]
[310309582,1704471086448,-500.0,0.00030684,2]
[310309583,1704471086458,-500.0,0.00030684,2]
[310309584,1704471086469,-500.0,0.00030684,2]
[310309585,1704471086484,-500.0,0.00030684,2]
[310309586,1704471086493,-538.55,0.00030684,2]
[310309587,1704471086503,-979.16,0.00030684,2]
[310309588,1704471086513,-500.0,0.00030684,2]
[310309589,1704471086522,-500.0,0.00030684,2]
[310309590,1704471086532,-500.0,0.00030684,2]
[310309591,1704471086542,-500.0,0.00030684,2]
[310309592,1704471086553,-500.0,0.00030684,2]
[310309593,1704471086563,-500.0,0.00030684,2]
[310309594,1704471086573,-500.0,0.00030684,2]
[310309595,1704471086582,-500.0,0.00030684,2]
[310309596,1704471086592,-500.0,0.00030684,2]
[310309597,1704471086602,-1145.26,0.00030684,2]
[310309598,1704471086612,-500.0,0.00030684,2]
[310309599,1704471086621,-702.19,0.00030684,2]
[310309600,1704471086631,-500.0,0.00030684,2]
[310309601,1704471086640,-500.0,0.00030684,2]
[310309602,1704471086650,-518.33,0.00030684,2]
[310309603,1704471086659,-500.0,0.00030684,2]
[310309604,1704471086669,-500.0,0.00030684,2]
[310309605,1704471086678,-500.0,0.00030684,2]
[310309606,1704471086688,-500.0,0.00030684,2]
[310309607,1704471086697,-500.0,0.00030684,2]
[310309608,1704471086707,-500.0,0.00030684,2]
[310309609,1704471086716,-500.0,0.00030684,2]
[310309610,1704471086728,-500.0,0.00030684,2]
[310309611,1704471086738,-500.0,0.00030684,2]
[310309612,1704471086747,-500.0,0.00030684,2]
[310309613,1704471086757,-500.0,0.00030684,2]
[310309614,1704471086767,-500.0,0.00030684,2]
[310309615,1704471086776,-500.0,0.00030684,2]
[310309616,1704471086786,-500.0,0.00030684,2]
[310309617,1704471086795,-500.0,0.00030684,2]
[310309618,1704471086805,-501.69,0.00030684,2]
[310309619,1704471086815,-500.0,0.00030684,2]
[310309620,1704471086824,-500.0,0.00030684,2]
[310309621,1704471086834,-500.0,0.00030684,2]
[310309622,1704471086843,-491.96542373,0.00030684,2]
[310309623,1704471086853,-621.07,0.00030684,2]
[310309624,1704471086862,-500.0,0.00030684,2]